Cogmind - Beta 16 *** ADVENTURER MODE // 2025.11.09 @ 15:26:33 Player: Gentle Jesus Result: Self-destructed Performance ------------- Evolutions (5) 2500 Regions Visited (16) 3200 Robots Destroyed (56) 280 Value Destroyed (2099) 2099 Prototype IDs (36) 720 Alien Tech Used (0) 0 Bonus (907) 907 TOTAL SCORE: 9706 Bonus ------- Follower Combat Kills 107 Entered Garrisons 200 Aligned with FarCom 300 Met Data Miner 300 Cogmind --------- Core Integrity 812/1000 Matter 147/300 Energy 55/100 System Corruption 14% Temperature Cool (0) Movement Core (150) Ox2 Location -5/Factory Parts ------- > --- POWER (2) -------- (None) > --- PROPULSION (5) --- (None) > --- UTILITY (7) ------ Advanced Heat Sink Advanced Sensor Array Advanced Melee Analysis Suite Transmission Jammer > --- WEAPON (3) ------- Variable Charge Gun > --- INVENTORY (5) ---- Particle Reactor Peak State ------------ > --- POWER ------------ Deuterium Engine Light Nuclear Core > --- PROPULSION ------- Improved Carbon-fiber Leg Improved Carbon-fiber Leg Improved Carbon-fiber Leg Flexi-carbon Leg Flexi-carbon Leg > --- UTILITY ---------- Power Amplifier Cryofiber Web Medium Storage Unit Structural Scanner Improved Signal Interpreter Advanced Melee Analysis Suite Transmission Jammer > --- WEAPON ----------- Power Sword Longsword +1 > --- INVENTORY -------- Light Nuclear Core Carbon-fiber Leg Carbon-fiber Leg Flexi-carbon Leg Advanced Heat Sink Small Matter Pod Advanced Sensor Array Improved Medium Armor Plating Magnetic Acceleration Cannon Rocket Launcher [Rating: 66] Favorites ----------- Power Light Nuclear Core Engine Deuterium Engine Power Core Light Nuclear Core Propulsion Improved Carbon-fiber Leg Leg Improved Carbon-fiber Leg Hover Unit Antigrav System Utility Medium Storage Unit Device Structural Scanner Storage Medium Storage Unit Processor Improved Melee Analysis Suite Hackware Hacking Suite Weapon Longsword +1 Energy Gun Small Laser Ballistic Gun Light Assault Rifle Ballistic Cannon Bore Cannon Launcher Rocket Launcher Impact Weapon Heavy Flail Slashing Weapon Longsword +1 Build | -11 -10 -10 -10 -9 -8 -7 -7 -7 -7 -6 -6 -6 -6 -5 -5 -5 ------- Run | Yrd Mat Min Exi Min Mat Fac Low Low Dat Pro Fac Gar Fac Fac Was Fac Slots Evolved 10 | . . . . . 4 2 . . . . 2 . . 2 . . Power 1 | . . . . . 1 . . . . . . . . . . . Propulsion 3 | . . . . . 2 . . . . . 1 . . . . . Utility 5 | . . . . . 1 2 . . . . . . . 2 . . Weapon 1 | . . . . . . . . . . . 1 . . . . . Parts Attached 59 | 7 1 6 1 . 5 12 3 . . . 8 1 4 7 2 2 Power 9 | 1 . 1 . . 1 3 . . . . 1 1 . 1 . . Engine 3 | 1 . . . . 1 1 . . . . . . . . . . Core 6 | . . 1 . . . 2 . . . . 1 1 . 1 . . Reactor . | . . . . . . . . . . . . . . . . . Propulsion 18 | 2 . 1 . . 1 4 . . . . 5 . . 3 1 1 Treads . | . . . . . . . . . . . . . . . . . Leg 17 | 2 . 1 . . 1 4 . . . . 5 . . 3 1 . Wheel . | . . . . . . . . . . . . . . . . . Hover 1 | . . . . . . . . . . . . . . . . 1 Flight . | . . . . . . . . . . . . . . . . . Utility 19 | 2 1 . . . 3 3 2 . . . 1 . 3 3 1 . Device 9 | 1 . . . . 2 . 1 . . . . . 2 2 1 . Storage 3 | 1 1 . . . . . . . . . . . . 1 . . Processor 6 | . . . . . 1 2 1 . . . 1 . 1 . . . Hackware 1 | . . . . . . 1 . . . . . . . . . . Protection . | . . . . . . . . . . . . . . . . . Artifact . | . . . . . . . . . . . . . . . . . Weapon 13 | 2 . 4 1 . . 2 1 . . . 1 . 1 . . 1 Energy Gun 3 | 2 . . . . . . . . . . . . . . . 1 Energy Cannon . | . . . . . . . . . . . . . . . . . Ballistic Gun 1 | . . 1 . . . . . . . . . . . . . . Ballistic Cannon 4 | . . 1 . . . 2 1 . . . . . . . . . Launcher 1 | . . . . . . . . . . . . . 1 . . . Special Weapon . | . . . . . . . . . . . . . . . . . Impact Weapon 1 | . . 1 . . . . . . . . . . . . . . Slashing Weapon 3 | . . 1 1 . . . . . . . 1 . . . . . Piercing Weapon . | . . . . . . . . . . . . . . . . . Special Melee Weapon . | . . . . . . . . . . . . . . . . . Unidentified Prototypes 2 | . . . . . . 1 . . . . . . . 1 . . Parts Lost 14 | . . . . . 1 . . . . . . . . 3 8 2 Power 3 | . . . . . . . . . . . . . . 2 1 . Propulsion 6 | . . . . . 1 . . . . . . . . 1 3 1 Utility 3 | . . . . . . . . . . . . . . . 3 . Weapon 2 | . . . . . . . . . . . . . . . 1 1 Highest Loss Streak 6 | . . . . . 1 . . . . . . . . 2 6 1 To Critical Strikes . | . . . . . . . . . . . . . . . . . Average Backups 7 | . 2 3 6 7 6 9 8 8 8 9 9 10 10 9 7 2 Power . | . . . . . . . . . . . . 1 1 . . 1 Propulsion 1 | . . . 1 1 . 1 2 2 2 2 1 2 2 2 1 . Utility 4 | . 1 1 3 3 4 6 5 5 5 5 5 5 5 4 3 . Weapon 1 | . 1 1 2 3 2 1 1 1 1 2 2 2 2 1 2 1 Tool/Special . | . . . . . . . . . . . . . . . . . Unused Backups 11 | . . . . . 1 3 . . . . . 2 . . 4 1 Power 2 | . . . . . . . . . . . . . . . 1 1 Propulsion 2 | . . . . . . . . . . . . 1 . . 1 . Utility 6 | . . . . . 1 2 . . . . . 1 . . 2 . Weapon 1 | . . . . . . 1 . . . . . . . . . . Tool/Special . | . . . . . . . . . . . . . . . . . Average Slot Usage (%) 91 | . 100 100 100 100 89 97 99 100 94 92 90 93 93 89 73 34 Engine 5 | . 14 12 . . 7 7 7 7 7 7 6 3 . 2 3 . Core 7 | . . 1 14 14 9 7 7 7 7 7 6 9 13 7 3 . Leg 27 | . 28 28 28 28 28 29 30 30 30 30 31 33 33 28 20 . Device 13 | . 14 14 14 14 16 7 14 15 15 15 13 13 13 19 20 16 Storage 7 | . 14 14 14 14 9 7 7 7 7 7 6 6 6 5 3 . Processor 10 | . . . . . . 21 14 15 15 15 13 13 13 11 8 5 Energy Gun 2 | . 28 13 . . . . . . . . . . . . . 4 Ballistic Cannon 3 | . . 3 14 14 9 5 7 7 2 . . . . . . . Slashing Weapon 8 | . . 3 14 14 9 7 7 7 7 7 12 13 12 11 8 . Peak Build Rating 66 | 7 7 17 21 21 31 47 46 46 46 41 56 56 60 66 66 36 Average Rating 39 | 4 7 10 18 21 27 43 45 46 42 41 51 56 57 63 50 31 On Entrance 33 | . 7 7 17 21 21 31 45 46 46 41 41 56 56 58 66 16 Avg Prop Armor Cover (%) . | . . . . . . . . . . . . . . . . . Naked Turns . | . . . . . . . . . . . . . . . . . Heaviest Build 37 | 13 18 28 28 28 36 35 37 37 37 29 33 33 30 34 34 16 Greatest Support 94 | 20 20 20 20 20 45 64 64 64 64 64 94 92 92 94 94 11 Greatest Overweight (x) 2 | 2 . 1 1 1 1 . . . . . . . . . . 1 Average Overweight (x) . | . . . 1 1 . . . . . . . . . . . . Largest Inventory Capacity 10 | 8 10 10 10 10 10 10 10 10 10 10 10 10 10 10 10 5 Average Capacity 9 | 7 9 10 10 10 10 10 10 10 10 10 10 10 10 10 7 5 Most Carried 10 | 2 3 10 9 9 10 10 10 8 9 9 10 10 10 10 10 4 Average Carried 8 | . 2 6 8 9 8 9 8 8 8 9 9 10 9 9 7 2 Final Capacity 10 | 8 10 10 10 10 10 10 10 10 10 10 10 10 10 10 5 5 Final Carried 10 | 2 2 8 9 9 10 10 8 8 9 9 10 10 10 10 4 1 Class Distribution -------------------- 26% | Assassin 15% | Infiltrator-Gladiator 15% | Gladiator 14% | Mutant 9% | Scavenger-Mutant 8% | Scavenger-Assassin 5% | Scout Dominant Class ---------------- Mutant | -10/Materials Mutant | -10/Mines Scavenger-Mutant | -10/Exiles Scavenger-Mutant | -9/Mines Scavenger-Assassin | -8/Materials Assassin | -7/Factory Assassin | -7/Lower Caves Assassin | -7/Lower Caves Assassin | -7/Data Miner Assassin | -6/Proximity Caves Gladiator | -6/Factory Gladiator | -6/Garrison Infiltrator-Gladiator | -6/Factory Infiltrator-Gladiator | -5/Factory Infiltrator-Gladiator | -5/Waste Scout | -5/Factory Resources | -11 -10 -10 -10 -9 -8 -7 -7 -7 -7 -6 -6 -6 -6 -5 -5 -5 ----------- Run | Yrd Mat Min Exi Min Mat Fac Low Low Dat Pro Fac Gar Fac Fac Was Fac Matter Collected 1090 | 260 . 162 . 17 93 198 30 5 . . 58 52 108 107 . . Remotely . | . . . . . . . . . . . . . . . . . Salvage Created 2229 | 43 . 372 . 85 140 595 129 72 . . 113 232 101 289 . 58 Parts 108 | 6 . 7 . 2 10 24 8 4 . . 7 11 9 16 . 4 Haulers Intercepted 1 | . . . . . . 1 . . . . . . . . . . Recyclers Shooed . | . . . . . . . . . . . . . . . . . Parts Field Recycled . | . . . . . . . . . . . . . . . . . Retrieved Matter . | . . . . . . . . . . . . . . . . . Parts Self-Destructed 17 | . . . . . . . 13 4 . . . . . . . . Prevented 1 | . . . . . . . 1 . . . . . . . . . Parts Restored . | . . . . . . . . . . . . . . . . . Kills | -11 -10 -10 -10 -9 -8 -7 -7 -7 -7 -6 -6 -6 -6 -5 -5 -5 ------- Run | Yrd Mat Min Exi Min Mat Fac Low Low Dat Pro Fac Gar Fac Fac Was Fac Combat Hostiles Destroyed 45 | . . 8 . . 3 7 2 3 . . 2 5 3 10 . 2 Melee 25 | . . 1 . . 2 3 2 3 . . 2 5 1 6 . . Guns 5 | . . 5 . . . . . . . . . . . . . . Cannons 4 | . . 1 . . 1 1 . . . . . . . . . 1 AOE 10 | . . . . . . 3 . . . . . . 2 4 . 1 Classes Destroyed 12 | 1 . 4 . . 1 5 1 . . . . . . . . . Worker 7 | . . 2 . . . 4 . . . . . . . . . 1 Tunneler 2 | 2 . . . . . . . . . . . . . . . . Hauler 1 | . . . . . . 1 . . . . . . . . . . Recycler 5 | . . 2 . . . 3 . . . . . . . . . . Watcher 1 | . . . . . . 1 . . . . . . . . . . Swarmer 16 | . . . . . . 4 . 3 . . . 1 . 8 . . Grunt 9 | . . 3 . . . . 2 . . . . 4 . . . . Sentry 6 | . . . . . 3 1 . . . . 1 . . 1 . . Hunter 4 | . . . . . . 1 . . . . . . 2 1 . . Programmer 5 | . . . . . . 1 . . . . 1 . 1 . . 2 Samaritan 1 | . . . . . . . 1 . . . . . . . . . Assembled 5 | . . 5 . . . . . . . . . . . . . . Best Kill Streak 8 | 2 . 2 . . 1 8 2 3 . . 1 2 2 4 . 2 Combat Bots Only 4 | . . 2 . . 1 4 2 3 . . 1 2 2 4 . 1 Max Kills in Single Turn 4 | 1 . 1 . . 1 4 1 1 . . 1 1 1 3 . 1 Gunslinging . | . . . . . . . . . . . . . . . . . Exploded 3 | . . . . . . 3 . . . . . . 1 3 . 1 Melee 1 | . . 1 . . 1 1 1 1 . . 1 1 1 1 . . Uniques/NPCs Destroyed . | . . . . . . . . . . . . . . . . . Combat | -11 -10 -10 -10 -9 -8 -7 -7 -7 -7 -6 -6 -6 -6 -5 -5 -5 -------- Run | Yrd Mat Min Exi Min Mat Fac Low Low Dat Pro Fac Gar Fac Fac Was Fac Hostile Shots Fired 322 | . 2 22 . . 30 41 8 19 . . 71 21 18 59 6 25 Missed 109 | . 2 9 . . 9 18 2 5 . . 27 8 4 16 1 8 Hits 213 | . . 13 . . 21 23 6 14 . . 44 13 14 43 5 17 Melee 12 | . . 7 . . . . . . . . . . . . 5 . Projectile 201 | . . 6 . . 21 23 6 14 . . 44 13 14 43 . 17 Critical Strikes 9 | . . . . . 3 . . . . . . . . 2 2 2 Part Disruptions 1 | . . . . . . 1 . . . . . . . . . . Damage Taken 2653 | . . 249 . . 246 206 73 126 . . 302 186 212 558 183 312 Core 428 | . . 93 . . . 21 24 23 . . 47 32 . 57 71 60 Absorbed by Shields . | . . . . . . . . . . . . . . . . . Ignored by Resistances 755 | . . 70 . . 67 60 20 36 . . 97 50 60 161 47 87 Core Remaining (%) 88 | 100 . . . 62 100 . . . . 90 . . 90 . . . Volleys Fired 56 | 2 6 19 . 1 8 3 . . . . . . 5 3 . 9 Largest 2 | 2 2 2 . 1 1 1 . . . . . . 1 1 . 2 Hottest 269 | 80 80 80 . 48 48 48 . . . . . . 33 33 . 269 Shots Fired 83 | 4 12 34 . 1 8 3 . . . . . . 5 3 . 13 Gun 53 | 4 12 32 . . . . . . . . . . . . . 5 Cannon 22 | . . 2 . 1 8 3 . . . . . . . . . 8 Launcher 8 | . . . . . . . . . . . . . 5 3 . . Special . | . . . . . . . . . . . . . . . . . Kinetic 33 | . . 13 . 1 8 3 . . . . . . . . . 8 Thermal 42 | 4 12 21 . . . . . . . . . . . . . 5 Explosive 8 | . . . . . . . . . . . . . 5 3 . . Electromagnetic . | . . . . . . . . . . . . . . . . . Robot Hit Streak 12 | 3 4 12 . . 4 5 . . . . . . 10 11 . 6 Robot Miss Streak 2 | . 2 2 . 1 2 . . . . . . . . 1 . 1 Penetration Max . | . . . . . . . . . . . . . . . . . Secondary Targets 1 | . . 1 . . . . . . . . . . . . . . Max Gunslinging Chain 1 | . . 1 . . . . . . . . . . . . . . Shots Hit Robots 147 | 3 7 31 . 1 12 22 6 3 . . 12 11 7 23 . 9 Core Hits 65 | 2 . 16 . . 3 11 2 2 . . 2 5 6 12 . 4 Critical Kills 3 | . . 2 . . 1 . . . . . . . . . . . Critical Parts Destroyed 4 | . . 2 . . 2 . . . . . . . . . . . Critical Strikes 17 | . . 4 . . 5 . . . . . 2 2 . 4 . . Destroy 6 | . . 2 . . 4 . . . . . . . . . . . Smash 2 | . . 2 . . . . . . . . . . . . . . Sever 9 | . . . . . 1 . . . . . 2 2 . 4 . . Melee Attacks 140 | . . 7 . 1 12 29 9 9 . . 17 24 8 24 . . Impact 6 | . . 6 . . . . . . . . . . . . . . Slashing 134 | . . 1 . 1 12 29 9 9 . . 17 24 8 24 . . Piercing . | . . . . . . . . . . . . . . . . . Sneak Attacks 13 | . . 1 . . . 9 1 . . . . 1 . 1 . . Combat Hostiles 2 | . . . . . . 1 . . . . . 1 . . . . Follow-up Attacks 3 | . . . . . . . . . . . 1 1 . 1 . . Damage Inflicted 7074 | 33 79 636 . 76 433 1880 330 131 . . 593 563 418 1330 . 572 Guns 540 | 33 79 259 . . . . . . . . . . . . . 169 Cannons 398 | . . 53 . . 123 29 . . . . . . . . . 193 Explosions 1254 | . . . . . . 399 . . . . . . 313 332 . 210 Melee 4882 | . . 324 . 76 310 1452 330 131 . . 593 563 105 998 . . Ramming . | . . . . . . . . . . . . . . . . . Kinetic 437 | . . 92 . . 123 29 . . . . . . . . . 193 Thermal 501 | 33 79 220 . . . . . . . . . . . . . 169 Explosive 1254 | . . . . . . 399 . . . . . . 313 332 . 210 Electromagnetic . | . . . . . . . . . . . . . . . . . Impact 278 | . . 278 . . . . . . . . . . . . . . Slashing 4604 | . . 46 . 76 310 1452 330 131 . . 593 563 105 998 . . Piercing . | . . . . . . . . . . . . . . . . . Highest Corruption 14 | . . . . . . 1 1 1 1 1 2 2 2 . 10 14 Average Corruption 2 | . . . . . . 1 1 1 1 1 1 2 2 . 6 10 Corruption Purged . | . . . . . . . . . . . . . . . . . Corruption Blocked . | . . . . . . . . . . . . . . . . . Effects 57 | . . . . . . 7 4 4 1 2 2 4 10 . 6 17 Message Errors 10 | . . . . . . 1 2 1 . . . . 1 . 1 4 Matter Fused 9 | . . . . . . 2 . 1 . 1 . . 1 . 2 2 Heat Flow Errors 8 | . . . . . . . . 1 . . 1 1 1 . . 4 Energy Discharges 13 | . . . . . . 2 1 . 1 . 1 1 . . 1 6 Parts Fused 2 | . . . . . . 1 . . . . . . 1 . . . Data Loss (minor) 9 | . . . . . . . 1 1 . . . 1 4 . 1 1 Data Loss (major) 2 | . . . . . . . . . . . . 1 1 . . . Alerts 3 | . . . . . . 1 . . . 1 . . 1 . . . Misdirections 1 | . . . . . . . . . . . . . . . 1 . Overload Shots 1 | . . . . . . . . . . . . . . . . 1 Overflow Damage 938 | . . 102 . 65 28 446 91 21 . . 24 38 31 54 . 38 Projectiles 3 | . . . . . . . . . . . . . . . . 3 Explosions 81 | . . . . . . . . . . . . . 11 35 . 35 Melee 854 | . . 102 . 65 28 446 91 21 . . 24 38 20 19 . . Knockbacks 5 | . . 1 . . . . . . . . . . . . . 4 Impact . | . . . . . . . . . . . . . . . . . Kinetic 5 | . . 1 . . . . . . . . . . . . . 4 Secondary . | . . . . . . . . . . . . . . . . . Self-Inflicted Damage 40 | . . . . . . . . . . . . . . . . 40 Shots 1 | . . . . . . . . . . . . . . . . 1 Rammed . | . . . . . . . . . . . . . . . . . Targets Rammed . | . . . . . . . . . . . . . . . . . Kicked . | . . . . . . . . . . . . . . . . . Crushed . | . . . . . . . . . . . . . . . . . Highest Temperature 229 | 18 90 36 . 12 138 6 3 116 . . 174 229 131 . . 195 Average Temperature 52 | 12 42 14 . 9 63 4 3 61 . . 95 120 60 . . 67 Received Heat Transfer 531 | . . 21 . . 171 45 54 . . . 66 81 21 72 . . Siege Activations . | . . . . . . . . . . . . . . . . . Martial Activations . | . . . . . . . . . . . . . . . . . Shielding Activations . | . . . . . . . . . . . . . . . . . Robots Disrupted . | . . . . . . . . . . . . . . . . . Combat Hostiles . | . . . . . . . . . . . . . . . . . Robots Corrupted 1 | . . 1 . . . . . . . . . . . . . . Combat Hostiles 1 | . . 1 . . . . . . . . . . . . . . Parts Fried 2 | . . 2 . . . . . . . . . . . . . . Impact Corruptions 3 | . . 3 . . . . . . . . . . . . . . Robots Melted . | . . . . . . . . . . . . . . . . . Combat Hostiles . | . . . . . . . . . . . . . . . . . Parts Melted . | . . . . . . . . . . . . . . . . . Heat Transferred 911 | 75 175 500 . . . . . . . . . . . . . 161 Parts Sabotaged . | . . . . . . . . . . . . . . . . . Parts Stolen . | . . . . . . . . . . . . . . . . . Parts Stripped . | . . . . . . . . . . . . . . . . . Power Chain Reactions . | . . . . . . . . . . . . . . . . . Alert | -11 -10 -10 -10 -9 -8 -7 -7 -7 -7 -6 -6 -6 -6 -5 -5 -5 ------- Run | Yrd Mat Min Exi Min Mat Fac Low Low Dat Pro Fac Gar Fac Fac Was Fac Maximum Alert Level 1 | . . . . . . . . . . . . 1 . 1 . . Low Security (%) 97 | 100 100 100 . 100 100 100 . . . . 100 77 100 95 100 100 Level 1 2 | . . . . . . . . . . . . 22 . 4 . . Level 2 . | . . . . . . . . . . . . . . . . . Level 3 . | . . . . . . . . . . . . . . . . . Level 4 . | . . . . . . . . . . . . . . . . . Level 5 . | . . . . . . . . . . . . . . . . . High Security . | . . . . . . . . . . . . . . . . . Max Security . | . . . . . . . . . . . . . . . . . Peak Influence 212 | 5 65 50 . 5 91 181 . . . . 30 212 96 211 33 155 Initial 96 | . 2 18 . . . . . . . . . 6 96 4 33 . Average 30 | . 7 4 . . 31 38 . . . . 4 80 16 110 8 10 Influence Increases 1959 | 10 75 101 . 5 210 324 160 85 . . 83 226 166 335 . 179 Destroy 0b10 Robot/C 860 | . . 60 . . 120 140 40 60 . . 40 100 60 200 . 40 Destroy 0b10 Robot/NC 90 | 10 . 20 . 5 5 45 . . . . . . . . . 5 Destroy Leader 224 | . . 20 . . 60 44 . 10 . . 20 . 20 40 . 10 Allied During Kill 4 | . . . . . 4 . . . . . . . . . . . Successful Hack 86 | . . . . . 5 28 . . . . 19 . 24 10 . . Disable Machine 90 | . . . . . 9 27 . . . . . . 18 . . 36 Anti-Garrison Action 50 | . . . . . . . . . . . . 50 . . . . Destroy Structure 195 | . . 1 . . 7 25 . . . . 4 16 14 40 . 88 Lose Combat Pursuer 360 | . 75 . . . . 15 120 15 . . . 60 30 45 . . Influence Decreases 1824 | 5 25 156 . 5 210 323 86 160 . . 71 26 366 232 115 44 Entered New Map 275 | . 3 37 . . . . 1 22 . . . 6 116 8 82 . Time Decay 1465 | 5 22 119 . 5 180 323 85 138 . . 71 . 250 194 33 40 Lost Part 44 | . . . . . 10 . . . . . . . . 30 . 4 Lost Ally 40 | . . . . . 20 . . . . . . 20 . . . . Squads Dispatched 18 | . . 1 . 1 2 3 . . . . 1 . 4 4 . 2 Investigation 6 | . . 1 . . . 1 . . . . . . 1 2 . 1 Extermination 6 | . . . . . . 1 . . . . 1 . 2 1 . 1 Reinforcement 5 | . . . . . 2 1 . . . . . . 1 1 . . Assault 1 | . . . . 1 . . . . . . . . . . . . Garrison . | . . . . . . . . . . . . . . . . . Intercept . | . . . . . . . . . . . . . . . . . Searches Triggered . | . . . . . . . . . . . . . . . . . Data Miner Redirects 1 | . . . . . . . . . . . . . . 1 . . Construction Impeded . | . . . . . . . . . . . . . . . . . Haulers Reinforced 2 | . . . . . . 1 . . . . . . . 1 . . Active Scanning Responses . | . . . . . . . . . . . . . . . . . Cargo Convoy Interrupts . | . . . . . . . . . . . . . . . . . Stealth | -11 -10 -10 -10 -9 -8 -7 -7 -7 -7 -6 -6 -6 -6 -5 -5 -5 --------- Run | Yrd Mat Min Exi Min Mat Fac Low Low Dat Pro Fac Gar Fac Fac Was Fac Distress Signals 2 | . 1 . . . 1 . . . . . . . . . . . Communications Jammed . | . . . . . . . . . . . . . . . . . Distress Signals . | . . . . . . . . . . . . . . . . . Times Spotted 100 | . 3 12 . . 10 18 10 4 . . 4 10 8 13 6 2 Peak Tracking Total 6 | . 6 4 . . 5 6 5 4 . . 2 2 2 5 6 2 Tactical Retreats 15 | . 1 2 . . . 1 3 1 . . . 4 1 2 . . Traps | -11 -10 -10 -10 -9 -8 -7 -7 -7 -7 -6 -6 -6 -6 -5 -5 -5 ------- Run | Yrd Mat Min Exi Min Mat Fac Low Low Dat Pro Fac Gar Fac Fac Was Fac Traps Triggered 7 | . 1 . . . . 4 . . . . 1 . . 1 . . Indirectly . | . . . . . . . . . . . . . . . . . Trap Hack Attempts . | . . . . . . . . . . . . . . . . . Triggered . | . . . . . . . . . . . . . . . . . Disarmed . | . . . . . . . . . . . . . . . . . Reprogrammed . | . . . . . . . . . . . . . . . . . Reused 2 | . . 2 . . . . . . . . . . . . . . Traps Extracted . | . . . . . . . . . . . . . . . . . Installed 5 | . . 3 . . 2 . . . . . . . . . . . Triggered . | . . . . . . . . . . . . . . . . . Most Traps Carried 5 | . . 5 2 2 2 . . . . . . . . . . . Machines | -11 -10 -10 -10 -9 -8 -7 -7 -7 -7 -6 -6 -6 -6 -5 -5 -5 ---------- Run | Yrd Mat Min Exi Min Mat Fac Low Low Dat Pro Fac Gar Fac Fac Was Fac Machines Disabled 11 | . . . . . 1 3 . . . . . 1 2 . . 4 Max in Single Turn 3 | . . . . . 1 3 . . . . . 1 1 . . 2 Garrison Relay 1 | . . . . . . . . . . . . 1 . . . . Machines Repaired . | . . . . . . . . . . . . . . . . . Machines Dismantled . | . . . . . . . . . . . . . . . . . Machines Sabotaged . | . . . . . . . . . . . . . . . . . Overloaded Fab Kills . | . . . . . . . . . . . . . . . . . Hacking | -11 -10 -10 -10 -9 -8 -7 -7 -7 -7 -6 -6 -6 -6 -5 -5 -5 --------- Run | Yrd Mat Min Exi Min Mat Fac Low Low Dat Pro Fac Gar Fac Fac Was Fac Machines Accessed 30 | . 2 1 1 . 1 9 1 . 4 . 4 . 3 3 . 1 Terminals 12 | . 2 . . . 1 3 . . . . 3 . 3 . . . Fabricators 5 | . . . . . . 2 . . . . . . . 2 . 1 Repair Stations . | . . . . . . . . . . . . . . . . . Recycling Units 1 | . . . . . . 1 . . . . . . . . . . Scanalyzers 3 | . . . . . . 2 . . . . . . . 1 . . Garrison Access 2 | . . . . . . 1 . . . . 1 . . . . . Total Hacks 70 | . 2 1 1 . 1 14 1 . 27 . 8 . 6 7 . 2 Successful 46 | . 2 1 1 . 1 7 1 . 27 . 2 . 3 1 . . Failed 24 | . . . . . . 7 . . . . 6 . 3 6 . 2 Catastrophic 7 | . . . . . . 1 . . . . 2 . 2 1 . 1 Database Lockouts . | . . . . . . . . . . . . . . . . . Manual 24 | . 1 . 1 . 1 6 . . . . 3 . 4 6 . 2 Terminals 17 | . 2 . . . 1 5 . . . . 3 . 6 . . . Fabricators 10 | . . . . . . 2 . . . . . . . 6 . 2 Repair Stations . | . . . . . . . . . . . . . . . . . Recycling Units 1 | . . . . . . 1 . . . . . . . . . . Scanalyzers 5 | . . . . . . 4 . . . . . . . 1 . . Garrison Access 7 | . . . . . . 2 . . . . 5 . . . . . Terminal Hacks 38 | . 2 1 1 . 1 1 1 . 27 . 1 . 3 . . . Record 11 | . . . . . . . . . 11 . . . . . . . Part Schematic 8 | . . . . . . . . . 8 . . . . . . . Robot Schematic 5 | . . . . . . . . . 5 . . . . . . . Prototype ID Bank 3 | . . . . . . . . . 3 . . . . . . . Open Door 2 | . . 1 . . . . 1 . . . . . . . . . Branch Access Points 1 | . . . . . . 1 . . . . . . . . . . Fabricator Index 1 | . . . . . . . . . . . 1 . . . . . Alert Level 1 | . . . . . . . . . . . . . 1 . . . Zone Layout 5 | . 2 . . . 1 . . . . . . . 2 . . . Proto ID Catalog 1 | . . . 1 . . . . . . . . . . . . . Fabricator Hacks . | . . . . . . . . . . . . . . . . . Repair Station Hacks . | . . . . . . . . . . . . . . . . . Recycling Unit Hacks 1 | . . . . . . 1 . . . . . . . . . . Report Inventory 1 | . . . . . . 1 . . . . . . . . . . Scanalyzer 4 | . . . . . . 3 . . . . . . . 1 . . Retrieve Study 4 | . . . . . . 3 . . . . . . . 1 . . Garrison Access Hacks 1 | . . . . . . . . . . . 1 . . . . . Unlock Access 1 | . . . . . . . . . . . 1 . . . . . Unauthorized Hacks 2 | . . . . . . 2 . . . . . . . . . . Terminals . | . . . . . . . . . . . . . . . . . Fabricators 2 | . . . . . . 2 . . . . . . . . . . Fabnet 2 | . . . . . . 2 . . . . . . . . . . Repair Stations . | . . . . . . . . . . . . . . . . . Recycling Units . | . . . . . . . . . . . . . . . . . Scanalyzers . | . . . . . . . . . . . . . . . . . Garrison Access . | . . . . . . . . . . . . . . . . . Data Cores Recovered . | . . . . . . . . . . . . . . . . . Used . | . . . . . . . . . . . . . . . . . Hacking Detections 15 | . 1 . . . . 5 . . . . 3 . 3 2 . 1 Full Trace Events 4 | . . . . . . . . . . . . . 1 2 . 1 Feedback Events 1 | . . . . . . . . . . . . . . . . 1 Corruption 1 | . . . . . . . . . . . . . . . . 1 Feedback Blocked . | . . . . . . . . . . . . . . . . . Robot Schematics Acquired 5 | . . . . . . . . . 5 . . . . . . . Robots Built . | . . . . . . . . . . . . . . . . . Authchips . | . . . . . . . . . . . . . . . . . Time . | . . . . . . . . . . . . . . . . . Total Robot Build Rating . | . . . . . . . . . . . . . . . . . Part Schematics Acquired 8 | . . . . . . . . . 8 . . . . . . . Parts Built . | . . . . . . . . . . . . . . . . . Authchips . | . . . . . . . . . . . . . . . . . Time . | . . . . . . . . . . . . . . . . . Total Part Build Rating . | . . . . . . . . . . . . . . . . . Part Studies Acquired 4 | . . . . . . 3 . . . . . . . 1 . . Parts Repaired . | . . . . . . . . . . . . . . . . . Time . | . . . . . . . . . . . . . . . . . Parts Recycled . | . . . . . . . . . . . . . . . . . Recycled Matter . | . . . . . . . . . . . . . . . . . Retrieved Matter . | . . . . . . . . . . . . . . . . . Retrieved Components . | . . . . . . . . . . . . . . . . . Parts Scanalyzed . | . . . . . . . . . . . . . . . . . Part Schematics Acquired . | . . . . . . . . . . . . . . . . . Parts Damaged . | . . . . . . . . . . . . . . . . . Bothacking | -11 -10 -10 -10 -9 -8 -7 -7 -7 -7 -6 -6 -6 -6 -5 -5 -5 ------------ Run | Yrd Mat Min Exi Min Mat Fac Low Low Dat Pro Fac Gar Fac Fac Was Fac Used RIF Installer . | . . . . . . . . . . . . . . . . . Robots Hacked 1 | . . . . . . . . . . . . 1 . . . . Non-combat . | . . . . . . . . . . . . . . . . . Combat 1 | . . . . . . . . . . . . 1 . . . . Robot Hacks Applied . | . . . . . . . . . . . . . . . . . Relay Couplers Released 5 | . . . . . . . . . . . . 5 . . . . Machine Destruction 5 | . . . . . . . . . . . . 5 . . . . Fabnet Peak Effective % 6 | . . . . . . . . . . 6 6 6 6 2 2 2 Autooverrided 1 | . . . . . . . . . . . . 1 . . . . Robots Rewired . | . . . . . . . . . . . . . . . . . Allies Hacked . | . . . . . . . . . . . . . . . . . Hacks Repelled . | . . . . . . . . . . . . . . . . . Allies | -11 -10 -10 -10 -9 -8 -7 -7 -7 -7 -6 -6 -6 -6 -5 -5 -5 -------- Run | Yrd Mat Min Exi Min Mat Fac Low Low Dat Pro Fac Gar Fac Fac Was Fac Total Allies 2 | . . . . 1 . . . . . . . 1 . . . . Largest Group 1 | . . . . 1 1 . . . . . . 1 . . . . Highest-Rated Group 31 | . . . . 31 31 . . . . . . 12 . . . . Highest-Rated Ally 31 | . . . . 31 31 . . . . . . 12 . . . . Initial Warlord ECA Mod 1 | . . . . . . . . . . . . . 1 . . . Total Orders . | . . . . . . . . . . . . . . . . . Ally Attacks 20 | . . . . . 18 . . . . . . 2 . . . . Total Damage 253 | . . . . . 253 . . . . . . . . . . . Kills 4 | . . . . . 4 . . . . . . . . . . . Allies Corrupted . | . . . . . . . . . . . . . . . . . Allies Melted . | . . . . . . . . . . . . . . . . . Intel | -11 -10 -10 -10 -9 -8 -7 -7 -7 -7 -6 -6 -6 -6 -5 -5 -5 ------- Run | Yrd Mat Min Exi Min Mat Fac Low Low Dat Pro Fac Gar Fac Fac Was Fac Active Infowar (turns) 7097 | 6 224 879 416 255 430 1075 433 519 105 228 416 455 997 541 117 1 Optics 1075 | . . . . . . 1075 . . . . . . . . . . Sensors 2531 | . . . . . . . 432 519 105 228 416 455 375 . . 1 Terrain 391 | . . . . . 391 . . . . . . . . . . . Structural 5315 | . . . . . 429 1075 433 519 105 228 416 455 997 541 117 . Seismic 1782 | 6 224 879 416 255 2 . . . . . . . . . . . Jamming 1280 | . . . . . . . . . . . . . 622 541 117 . Robot Analysis Total . | . . . . . . . . . . . . . . . . . Derelict Logs Recovered 4 | . . . . 1 . . 2 1 . . . . . . . . Drone Launches . | . . . . . . . . . . . . . . . . . Drone Recoveries . | . . . . . . . . . . . . . . . . . Exploration | -11 -10 -10 -10 -9 -8 -7 -7 -7 -7 -6 -6 -6 -6 -5 -5 -5 ------------- Run | Yrd Mat Min Exi Min Mat Fac Low Low Dat Pro Fac Gar Fac Fac Was Fac Turns Passed 7670 | 72 224 879 416 255 430 1075 433 519 105 228 416 455 997 541 161 464 Spaces Moved 4949 | 52 118 588 219 133 246 662 363 456 96 208 315 273 586 397 133 104 Core 94 | 16 . . . . . . . . . . . . . . 19 59 Treads . | . . . . . . . . . . . . . . . . . Legs 4810 | 36 118 588 219 133 246 662 363 456 96 208 315 273 586 397 114 . Wheels . | . . . . . . . . . . . . . . . . . Hover 45 | . . . . . . . . . . . . . . . . 45 Flight . | . . . . . . . . . . . . . . . . . Fastest Speed 50 | 50 120 120 190 190 120 107 110 110 110 110 103 120 120 114 50 50 Average Speed 122 | 105 120 131 190 190 150 116 110 110 110 110 109 120 120 119 105 54 Slowest Speed 190 | 150 120 190 190 190 190 122 110 110 110 110 122 120 120 120 120 120 Overloaded Moves . | . . . . . . . . . . . . . . . . . Propulsion Burnouts . | . . . . . . . . . . . . . . . . . Robots Hopped . | . . . . . . . . . . . . . . . . . Potential Cave-ins . | . . . . . . . . . . . . . . . . . Cave-ins Triggered . | . . . . . . . . . . . . . . . . . Exploration Rate (%) 37 | 5 31 72 60 45 20 28 60 61 70 37 13 13 19 14 82 2 Regions Visited 16 Branch Regions 7 Pre-discovered Areas 3 | . . . . 1 . . 1 . 1 . . . . . . . Known Exits Taken 7 | . . . . . . 1 1 1 1 1 1 . 1 . . . Unknown Exits Taken 6 | 1 1 1 1 1 1 . . . . . . . . . . . Scrap Searched 5 | . . 1 . . . . 3 1 . . . . . . . . Spaces Dug 38 | . . 1 . . 4 8 3 6 . . 5 6 3 2 . . Terrain Destroyed 145 | . . 1 . . 9 28 3 6 . . 5 6 16 19 . 52 Melee 38 | . . 1 . . 4 8 3 6 . . 5 6 3 2 . . Projectile 7 | . . . . . 5 . . . . . . . . . . 2 AOE 100 | . . . . . . 20 . . . . . . 13 17 . 50 Terrain Rammed . | . . . . . . . . . . . . . . . . . Walls Destroyed . | . . . . . . . . . . . . . . . . . Machines Disabled . | . . . . . . . . . . . . . . . . . Actions | -11 -10 -10 -10 -9 -8 -7 -7 -7 -7 -6 -6 -6 -6 -5 -5 -5 --------- Run | Yrd Mat Min Exi Min Mat Fac Low Low Dat Pro Fac Gar Fac Fac Was Fac Total 6350 | 62 188 651 219 134 287 941 388 464 96 207 371 384 868 440 153 497 Wait 1069 | . 63 14 . . . 212 11 . . . 27 82 263 4 17 376 Move 4935 | 51 117 587 218 132 245 661 362 455 95 207 315 272 585 397 132 104 Hop . | . . . . . . . . . . . . . . . . . Pick Up 30 | 2 . 8 . . 8 6 . . . . . 3 . 2 1 . Fast Attach 24 | 7 . 2 . . 3 5 1 . . . 1 . . 3 . 2 Attach 22 | . . . . . 3 3 2 . . . 1 . 2 4 3 4 Detach 7 | . . . . . . 2 . . 1 . . . 2 1 . 1 Swap 27 | . 1 5 1 . . 7 . . . . 7 1 3 2 . . Drop 41 | . 1 6 . . 6 13 3 . . . 4 4 1 2 . 1 Fire 56 | 2 6 19 . 1 8 3 . . . . . . 5 3 . 9 Melee 134 | . . 7 . 1 12 29 9 9 . . 16 22 7 22 . . Ram . | . . . . . . . . . . . . . . . . . Kick . | . . . . . . . . . . . . . . . . . Crush . | . . . . . . . . . . . . . . . . . Escape Stasis . | . . . . . . . . . . . . . . . . . Rewire . | . . . . . . . . . . . . . . . . . Trap 5 | . . 3 . . 2 . . . . . . . . . . . Miscellaneous . | . . . . . . . . . . . . . . . . . Route ------- -11/Scrapyard -10/Materials (discovered 2 exits: [*Mat] / *Min) -10/Mines (discovered 3 exits: [*Mat x2] / *Exi) -10/Exiles -9/Mines -8/Materials -7/Factory (discovered 5 exits: *Fac / Sto x2 / *Low x2) -7/Lower Caves -7/Lower Caves -7/Data Miner -6/Proximity Caves -6/Factory -6/Garrison -6/Factory -5/Factory -5/Waste -5/Factory History --------- Turn | Location | Event 4 | -11/Scrapyard | Discovered new exit (range 16) 73 | -11/Scrapyard | Entered Materials 151 | -10/Materials | Discovered new exit (range 3) 272 | -10/Materials | Discovered new exit (range 9) 297 | -10/Materials | Entered Mines 315 | -10/Mines | Build established: Mutant 371 | -10/Mines | Discovered new exit (range 7) 384 | -10/Mines | Met a Derelict shopkeep closing up shop 512 | -10/Mines | Assembled infested the area 517 | -10/Mines | Assisted by a Guerilla fighting off Assembled 615 | -10/Mines | Found a hidden stash of uninstalled traps 918 | -10/Mines | A weapon hastily lodged in a ceiling crevice suddenly fell to the ground 1110 | -10/Mines | Discovered new exit (range 11) 1168 | -10/Mines | Deemed a non-threat by the Exiles lab entrance 1168 | -10/Mines | Discovered new exit (range 5) 1176 | -10/Mines | Entered Exiles 1224 | -10/Exiles | Met 8R-AWN 1254 | -10/Exiles | Met EX-HEX 1308 | -10/Exiles | Met EX-BIN 1330 | -10/Exiles | Aligned with FarCom system 1332 | -10/Exiles | Given EX-Vault access code 1384 | -10/Exiles | Opened EX-Vault 1387 | -10/Exiles | Build established: Scavenger-Mutant 1401 | -10/Exiles | Found Longsword +1 1438 | -10/Exiles | Warned to stay clear of 0b10 Research branches 1493 | -10/Exiles | Met EX-DEC 1577 | -10/Exiles | Discovered new exit (range 10) 1592 | -10/Exiles | Left Exiles lab with Longsword +1 1592 | -10/Exiles | Entered Mines 1593 | -9/Mines | Met a Derelict testing a Signal Generator 1609 | -9/Mines | Met a Derelict bent on vengeance 1781 | -9/Mines | Learned location of Storage (-7) 1815 | -9/Mines | Discovered new exit (range 9) 1847 | -9/Mines | Entered Materials 1847 | -8/Materials | Accompanied by 1 ally 1847 | -8/Materials | Evolved 4 slots: Power x1, Propulsion x2, Utility x1 2133 | -8/Materials | Discovered new exit (range 13) 2141 | -8/Materials | Build established: Scavenger-Assassin 2277 | -8/Materials | Entered Factory 2277 | -7/Factory | Evolved 2 slots: Utility x2 2801 | -7/Factory | Build established: Assassin 2994 | -7/Factory | Identified exit to Storage 2994 | -7/Factory | Identified exit to Lower Caves 3152 | -7/Factory | Discovered new exit (range 5) 3352 | -7/Factory | Entered Lower Caves 3486 | -7/Lower Caves | Identified exit to Lower Caves 3548 | -7/Lower Caves | Encountered a Warlord checkpoint 3555 | -7/Lower Caves | Learned location of Zion (-6) 3785 | -7/Lower Caves | Entered another Lower Caves area 3894 | -7/Lower Caves | Learned Factory stockpile data 3909 | -7/Lower Caves | Spotted B-75 Beast 4290 | -7/Lower Caves | Encountered a Warlord checkpoint 4291 | -7/Lower Caves | Discovered new exit (range 9) 4303 | -7/Lower Caves | Identified exit to Data Miner 4304 | -7/Lower Caves | Entered Data Miner 4304 | -7/Data Miner | Discovered new exit (range 6) 4325 | -7/Data Miner | Met Data Miner 4348 | -7/Data Miner | Learned location of Section 7 (-2) 4348 | -7/Data Miner | Acquired the access code to Warlord's prototype stash 4375 | -7/Data Miner | Received God Mode back door access code from Data Miner 4408 | -7/Data Miner | Identified exit to Proximity Caves 4409 | -7/Data Miner | Entered Proximity Caves 4626 | -6/Proximity Caves | Discovered new exit (range 8) 4635 | -6/Proximity Caves | Identified exit to Factory 4637 | -6/Proximity Caves | Entered Factory 4637 | -6/Factory | Evolved 2 slots: Propulsion x1, Weapon x1 4994 | -6/Factory | Build established: Gladiator 5053 | -6/Factory | Identified exit to Garrison 5053 | -6/Factory | Entered Garrison 5101 | -6/Garrison | Triggered checkpoint 5276 | -6/Garrison | Discovered new exit (range 5) 5303 | -6/Garrison | Identified exit to Factory 5383 | -6/Garrison | Triggered checkpoint 5406 | -6/Garrison | Garrison Relay disabled 5474 | -6/Garrison | Spotted B-75 Beast 5477 | -6/Garrison | Triggered checkpoint 5508 | -6/Garrison | Entered Factory 6160 | -6/Factory | Build established: Infiltrator-Gladiator 6463 | -6/Factory | Discovered new exit (range 15) 6480 | -6/Factory | Identified exit to Factory 6505 | -6/Factory | Entered another Factory area 6505 | -5/Factory | Evolved 2 slots: Utility x2 6651 | -5/Factory | Incoming investigation squad redirected 6994 | -5/Factory | Discovered new exit (range 15) 7046 | -5/Factory | Sucked down chute 7046 | -5/Factory | Entered Waste 7061 | -5/Waste | EMP discharged 7083 | -5/Waste | Spotted C-40 Crusher 7126 | -5/Waste | Spotted C-40 Crusher 7134 | -5/Waste | Spotted C-40 Crusher 7136 | -5/Waste | Spotted C-40 Crusher 7136 | -5/Waste | Crushed by Compactor (1 part destroyed, 1 dropped) 7141 | -5/Waste | Crushed by Compactor (1 part destroyed, 2 dropped) 7147 | -5/Waste | Crushed by Compactor (1 part destroyed, 1 dropped) 7150 | -5/Waste | Crushed by Compactor (1 part destroyed, 2 dropped) 7161 | -5/Waste | EMP discharged 7161 | -5/Waste | System corruption reached 10% 7165 | -5/Waste | Spotted C-40 Crusher 7181 | -5/Waste | Lost 6 parts (1p2n3u) 7190 | -5/Waste | Spotted C-40 Crusher 7196 | -5/Waste | Crushed by Compactor (1 part destroyed, 2 dropped) 7201 | -5/Waste | Discovered new exit (range 11) 7207 | -5/Waste | Entered Factory 7502 | -5/Factory | Build established: Scout 7671 | -5/Factory | Self-destructed Last Messages --------------- K-01 Serf collects debris. P-70 Sage knocked back. Antigrav System destroyed. Nuclear Reactor explodes. Destroyed Tesla Rifle. P-70 Sage destroyed. U-05 Engineer lays Concrete. K-01 Serf collects debris. Dropped Magnetic Acceleration Cannon. U-05 Engineer builds a Door. Nuclear Reactor explodes. K-01 Serf destroyed. System corrupted: Energy discharge (-4). The unstable cave ceiling collapses. U-05 Engineer lays Concrete. Connecting with Fabricator... Current location identified: Factory Feedback: System corruption (+1%). ALERT: Suspicious activity at Fabricator F003. Dispatching Investigation squad. Map ----- +----------------------------------------------------+ | #########+#???????????????????????????????????? | | % #????????????????????????????????? | | #????????????????????????????????? | | #????????????????????????????????? | | #????????????????????????????????? | | #????????????????????????????????? | | ########### ?????????????????????????????????? | | #?????? ?????????????????????????????????? | | " " #???????? ?????????????????????????????????? | | " " #?????????????????????s?????????????????????? | | " " #?????????????????????ss????????????????????? | | " " #?????????????????????s?????????????????????? | | " " #??????????????????????s????????????????????? | | " " #???????######+#######??????????????????????? | | " " #???????# #??????????????????????? | | " " #???????# #??????????????????????? | | " " #########| #??????????????????????? | | + + #??????????????????????? | | ######### #??????????????????????? | | ######???????# #??????????????????????? | | ?????????????# #??????????????????????? | | ?????????????# #??????????????????????? | | ?????????????# #??????????????????????? | | ?????????????# #??????????????????????? | | ?????????????# | #??????????????????????? | | ?????????????# @#??????????????????????? | | ?????????????##############??????????????????????? | | ?????????????????????????????????????????????????? | | ?????????????????????????????????????????????????? | | ?????????????????????????????????????????????????? | | ?????????????????????????????????????????????????? | | ?????????????????????????????????????????????????? | | ?????????????????????????????????????????????????? | | ?????????????????????????????????????????????????? | | ?????????????????????????????????????????????????? | | ?????????????????????????????????????????????????? | | ?????????????????????????????????????????????????? | | ?????????????????????????????????????????????????? | | ?????????????????????????????????????????????????? | | ?????????????????????????????????????????????????? | | ?????????????????????????????????????????????????? | | ?????????????????????????????????????????????????? | | ?????????????????????????????????????????????????? | | ?????????????????????????????????????????????????? | | ?????????????????????????????????????????????????? | | ?????????????????????????????????????????????????? | | ?????????????????????????????????????????????????? | | ?????????????????????????????????????????????????? | | ?????????????????????????????????????????????????? | | ?????????????????????????????????????????????????? | +----------------------------------------------------+ Best States ------------- Heat Dissipation 40 Energy Generation 27 Energy Capacity 335 Matter Stores 300 Matter Capacity 300 Sight Range 20 Robot Scan Range 16 Terrain Scan Range 16 Terrain Scan Density 10 Jamming Range 12 Power Amplification 20 Base Temperature (-) 100 Resistance: KI 20 Resistance: TH 20 Resistance: EX 20 Resistance: EM 20 Resistance: I 20 Resistance: S 20 Resistance: P 20 Evasion (%) 55 Melee Accuracy 12 Offensive Hacking 20 Item Schematics ----------------- Combat Drone Bay | -7/Data Miner | Free Lgt. Regenerative Plating | -7/Data Miner | Free Cld. Cesium-ion Thruster | -7/Data Miner | Free Gravity Neutralizer | -7/Data Miner | Free Imp. Lightning Gun | -7/Data Miner | Free Antigrav System | -7/Data Miner | Free Imp. Corruption Screen | -7/Data Miner | Free Imp. Arc Projector | -7/Data Miner | Free Robot Schematics ------------------ G-47 Trooper | -7/Data Miner | Free A-15 Conveyor | -7/Data Miner | Free E-15 Imp | -7/Data Miner | Free H-66 Slayer | -7/Data Miner | Free B-48 Gladiator | -7/Data Miner | Free Fabricated ------------ Nothing Repaired ---------- Nothing Studied --------- VSS Leg | -7/Factory | Hacked Adv. Assault Cannon | -7/Factory | Hacked Carbon-fiber Leg | -7/Factory | Hacked Flexi-carbon Leg | -5/Factory | Hacked Alien Tech Used ----------------- None Achievements -------------- Let Me Out Of Here Challenges ------------ None Game ------ Seed VoltaicCooledChainsword Manual? 0 Play Time 00:46:04 Cumulative 174.8 hours Start 2025.11.09 @ 14:24:46 End 2025.11.09 @ 15:26:33 Sessions 5 Manual Loads 0 Difficulty Adventurer Special Mode None Game No. 142 Rogue 0 Adventurer 142 Explorer 0 Win Type - Total 4 Types 3/0/0/1/0/0/0/0/0/0 Lore% 68 Gallery% 64 Achievement% 44 Wizard Run 0 Options --------- Layout 1 ASCII 0 Keyboard 0 Movement Mouse Keybinds 0 Fullscreen 1 Font 24/Smallcaps Map View 50x35 Zoom Use 0% Tactical HUD 0 Map Filters NONE Filters NONE Steam 1 RUN: f9bebba3-c728-4cef-aa65-71807dafa3e4